bitfinex-derivatives/quotes_ETHF0:USTF0_20230903
["timestamp","ask_amount","ask_price","bid_price","bid_amount"]
[1693755526780,10.77954828,1634.1,1634.0,16.15833692]
[1693755527183,13.6467118,1634.1,1634.0,16.15833692]
[1693755527481,10.77954828,1634.1,1634.0,16.15833692]
[1693755528383,10.5865018,1634.1,1634.0,16.15833692]
[1693755528580,7.71933828,1634.1,1634.0,16.15833692]
[1693755530090,13.6466818,1634.1,1634.0,13.2911734]
[1693755530987,13.6466818,1634.1,1634.0,16.15833692]
[1693755531989,10.77951828,1634.1,1634.0,16.15833692]
[1693755532688,13.6466818,1634.1,1634.0,16.15833692]
[1693755532990,14.13856216,1634.1,1634.0,16.15833692]
[1693755533691,11.27139864,1634.1,1634.0,16.15833692]
[1693755533890,14.13856216,1634.1,1634.0,16.15833692]
[1693755534489,11.27139864,1634.1,1634.0,16.15833692]
[1693755535288,13.66986607,1634.1,1634.0,13.2911734]
[1693755535789,16.53702959,1634.1,1634.0,13.2911734]
[1693755536590,25.10622959,1634.1,1634.0,4.1102034]
[1693755536887,23.50725131,1634.1,1634.0,1.7034154]
[1693755537092,23.50725131,1634.1,1634.0,4.7638054]
[1693755537393,23.50725131,1634.1,1634.0,7.8241954]
[1693755538694,20.44705131,1634.1,1634.0,7.33864331]
[1693755538895,17.57988779,1634.1,1634.0,13.26619683]
[1693755539095,20.44705131,1634.1,1634.0,10.39903331]
[1693755541596,20.44705131,1634.1,1634.0,12.80582131]
[1693755541792,20.44705131,1634.1,1634.0,10.39903331]
[1693755543099,20.44705131,1634.1,1634.0,7.33864331]
[1693755543599,20.75322821,1634.1,1634.0,7.33864331]
[1693755544297,22.22616775,1634.1,1634.0,7.33864331]
[1693755544498,20.75322821,1634.1,1634.0,7.33864331]
[1693755545296,22.22940855,1634.1,1634.0,9.74543131]
[1693755545800,22.22940855,1634.1,1634.0,12.61259483]
[1693755546095,19.16922855,1634.1,1634.0,15.67298483]
[1693755546296,2.8933965,1634.1,1634.0,18.79457483]
[1693755546499,4.47548243,1634.3,1634.1,0.0612]
[1693755546796,13.85331921,1634.5,1634.2,26.09710497]
[1693755547000,12.38135307,1634.5,1634.4,14.74924]
[1693755547192,12.68746708,1634.5,1634.4,17.61640352]
[1693755547395,6.56832708,1634.5,1634.4,24.78086406]
[1693755547590,9.62784708,1634.5,1634.4,24.78086406]
[1693755548100,9.62784708,1634.5,1634.4,21.72115406]
[1693755548490,12.68736708,1634.5,1634.4,21.72115406]
[1693755549094,12.68736708,1634.5,1634.4,19.88634]
[1693755549301,9.48465401,1634.5,1634.4,19.88634]
[1693755550197,15.41134753,1634.5,1634.4,5.509]
[1693755550397,15.41134753,1634.5,1634.2,19.18025151]
[1693755550398,24.1230606,1634.5,1634.2,19.18025151]
[1693755550597,24.1230606,1634.5,1634.2,19.18035151]
[1693755550598,0.30611401,1634.4,1634.2,19.18035151]
[1693755550810,9.1797,1634.3,1634.2,22.04751503]
[1693755551102,9.1797,1634.3,1634.2,23.8816756]
[1693755551297,9.1797,1634.3,1634.2,24.3920656]
[1693755552200,6.1198,1634.3,1634.2,24.3920656]
[1693755553306,6.1198,1634.3,1634.2,18.8830656]
[1693755554300,6.1198,1634.3,1634.2,21.9431556]
[1693755554705,14.68855,1634.4,1634.2,21.9431556]
[1693755554900,14.68855,1634.4,1634.2,20.10899503]
[1693755559008,2.86716352,1634.3,1634.2,17.04890503]
[1693755559209,14.68566352,1634.3,1634.2,15.82246495]
[1693755559611,14.68566352,1634.3,1634.2,18.88255495]
[1693755559811,14.68566352,1634.3,1634.2,16.01539143]
[1693755560117,11.62576352,1634.3,1634.2,16.01539143]
[1693755560505,11.62576352,1634.3,1634.2,18.88255495]
[1693755560917,11.62576352,1634.3,1634.2,18.88068116]
[1693755561214,14.68566352,1634.3,1634.2,18.88068116]
[1693755561619,11.8185,1634.3,1634.2,18.88068116]
[1693755562111,14.68566352,1634.3,1634.2,16.01351764]
[1693755562613,11.8185,1634.3,1634.2,18.88068116]
[1693755563320,14.68566352,1634.3,1634.2,18.88068116]
[1693755563819,11.8185,1634.3,1634.2,18.88068116]
[1693755564219,8.7586,1634.3,1634.2,18.88068116]
[1693755564421,11.62576352,1634.3,1634.2,18.88068116]
[1693755565323,8.7586,1634.3,1634.2,18.88068116]
[1693755565721,11.62576352,1634.3,1634.2,18.88068116]
[1693755565923,8.7586,1634.3,1634.2,18.88068116]
[1693755567024,11.62576352,1634.3,1634.2,18.88068116]
[1693755567226,8.7586,1634.3,1634.2,18.88068116]
[1693755567524,8.7586,1634.3,1634.2,21.94077116]
[1693755568224,5.6987,1634.3,1634.2,21.94077116]
[1693755570229,11.62572352,1634.3,1634.2,21.94077116]
[1693755570420,8.75856,1634.3,1634.2,21.94077116]
[1693755570623,11.62572352,1634.3,1634.2,18.88068116]
[1693755571028,8.75856,1634.3,1634.2,18.88068116]
[1693755571526,11.62572352,1634.3,1634.2,18.88068116]
[1693755572026,11.81846,1634.3,1634.2,15.82059116]
[1693755572223,14.68562352,1634.3,1634.2,12.95342764]
[1693755572422,14.68562352,1634.3,1634.2,10.5471216]
[1693755572618,14.68562352,1634.3,1634.2,13.60714791]
[1693755573528,14.68562352,1634.3,1634.2,16.47431143]
[1693755574227,11.81846,1634.3,1634.2,16.47431143]
[1693755574427,14.68562352,1634.3,1634.2,10.54705791]
[1693755575127,15.17503055,1634.3,1634.2,13.60714791]
[1693755575626,15.17503055,1634.3,1634.2,16.47431143]
[1693755575824,12.11513055,1634.3,1634.2,16.47431143]
[1693755576625,12.11513055,1634.3,1634.2,13.60714791]
[1693755578728,12.11513055,1634.3,1634.2,16.47431143]
[1693755579123,12.11513055,1634.3,1634.2,13.60714791]
[1693755579830,27.25046249,1634.3,1634.1,3.06014]
[1693755580026,6.95101024,1634.2,1634.0,2.40630604]
[1693755580223,12.04797352,1634.1,1634.0,10.36082455]
[1693755580731,14.54447352,1634.1,1634.0,10.36082455]
[1693755581330,14.54447352,1634.1,1634.0,13.42128455]
[1693755583333,20.05347352,1634.1,1634.0,13.42128455]
[1693755586935,20.05347352,1634.1,1634.0,10.36082455]
[1693755587137,20.05347352,1634.1,1634.0,6.12073]
[1693755587435,20.05347352,1634.1,1634.0,7.95438822]
[1693755588134,20.05347352,1634.1,1634.0,11.01484822]
[1693755588339,28.92893745,1634.1,1633.8,5.52827604]
[1693755588537,23.11374352,1634.1,1633.9,1.83371087]
[1693755588735,23.11374352,1634.1,1633.9,7.95493087]
[1693755588736,5.509,1634.0,1633.9,7.95493087]
[1693755588931,14.69038,1634.0,1633.9,7.95493087]
[1693755589537,14.69038,1634.0,1633.9,11.01558087]
[1693755589742,14.69038,1634.0,1633.9,7.95493087]
[1693755589933,14.69038,1634.0,1633.9,6.12122]
[1693755590133,14.69038,1634.0,1633.8,8.52776604]
[1693755590337,8.37616352,1633.9,1633.8,6.12146]
[1693755590544,17.55811352,1633.9,1633.8,6.12146]
[1693755590842,20.05651352,1633.9,1633.8,6.12146]
[1693755592739,20.05651352,1633.9,1633.8,8.98862352]
[1693755593540,20.05651352,1633.9,1633.8,9.18225]
[1693755594641,20.05651352,1633.9,1633.8,12.04941352]
[1693755595042,20.05651352,1633.9,1633.8,9.18225]
[1693755595741,20.05651352,1633.9,1633.8,12.04941352]
[1693755595940,20.05651352,1633.9,1633.8,9.18225]
[1693755598350,23.11716352,1633.9,1633.7,5.57915]
[1693755598538,5.509,1633.8,1633.7,3.06085]
[1693755598743,14.69131,1633.8,1633.7,3.06085]
[1693755599249,17.75208,1633.8,1633.7,3.06085]
[1693755599447,17.75208,1633.8,1633.6,9.24435]
[1693755599637,8.37616352,1633.7,1633.6,9.24435]
[1693755599949,19.98504352,1633.7,1633.6,9.24435]
[1693755604146,23.04600352,1633.7,1633.5,2.6443]
[1693755604450,5.509,1633.6,1633.5,0.0612]
[1693755604651,17.7536,1633.6,1633.5,0.0612]
[1693755606052,17.7536,1633.6,1633.4,5.53934]
[1693755606349,8.37616352,1633.5,1633.3,6.12327]
[1693755606651,14.69356,1633.4,1633.3,6.12327]
[1693755606851,17.29576,1633.4,1633.3,3.06159]
[1693755607052,20.35728,1633.4,1633.3,3.06159]
[1693755609753,20.35728,1633.4,1633.2,8.73166]
[1693755609954,8.37616352,1633.3,1633.2,8.73166]
[1693755610157,17.56129352,1633.3,1633.2,8.73166]
[1693755611254,20.62300352,1633.3,1633.2,8.73166]
[1693755615055,20.62300352,1633.3,1633.2,8.53699352]
[1693755615056,6.12342,1633.3,1633.2,8.53699352]
[1693755615359,9.18513,1633.3,1633.2,14.66079352]
[1693755616365,6.12342,1633.3,1633.2,14.66079352]
[1693755616652,9.18513,1633.3,1633.2,14.66079352]
[1693755617753,15.17600232,1633.4,1633.2,17.72269352]
[1693755617958,14.69379,1633.4,1633.3,2.26993648]
[1693755618152,14.02227,1633.5,1633.3,14.51677648]
[1693755618457,11.63187,1633.5,1633.4,2.92836352]
[1693755618654,5.509,1633.5,1633.4,15.17444352]
[1693755618858,8.71383,1633.7,1633.6,0.0612]
[1693755619056,9.18267,1633.8,1633.6,14.32055]
[1693755619361,6.12172,1633.8,1633.6,17.3817]
[1693755619661,9.18259,1633.8,1633.6,17.3817]
[1693755620463,12.04975352,1633.8,1633.6,17.3817]
[1693755620956,8.37616352,1633.7,1633.6,9.18345]
[1693755621163,17.55904352,1633.7,1633.6,9.18345]
[1693755621363,14.69188,1633.7,1633.6,12.05061352]
[1693755621753,17.55904352,1633.7,1633.6,12.05061352]
[1693755623066,14.69188,1633.7,1633.6,12.05061352]
[1693755623363,17.55904352,1633.7,1633.6,9.18345]
[1693755623563,17.55904352,1633.7,1633.6,12.05061352]
[1693755623761,14.49808352,1633.7,1633.6,12.05061352]
[1693755623961,14.49808352,1633.7,1633.6,9.18345]
[1693755624464,14.49808352,1633.7,1633.6,15.11176352]
[1693755624759,14.49808352,1633.7,1633.6,12.05061352]
[1693755625561,14.49808352,1633.7,1633.6,9.18345]
[1693755625869,14.49808352,1633.7,1633.6,15.11176352]
[1693755626467,11.63073,1633.8,1633.6,15.11176352]
[1693755626667,11.63073,1633.8,1633.7,2.26993648]
[1693755626863,11.63073,1633.8,1633.7,14.51377648]
[1693755627064,17.55877352,1633.8,1633.7,14.51377648]
[1693755627368,17.55877352,1633.8,1633.7,9.18288]
[1693755630555,20.61965352,1633.8,1633.6,5.54395]
[1693755630957,5.509,1633.7,1633.5,1.60014089]
[1693755631262,20.62076352,1633.6,1633.4,10.15168089]
[1693755631462,5.509,1633.5,1633.4,7.09023089]
[1693755631769,17.75436,1633.5,1633.4,4.66166089]
[1693755632067,17.75436,1633.5,1633.4,7.72318089]
[1693755632263,17.75436,1633.5,1633.4,9.51570921]
[1693755632468,17.75436,1633.5,1633.4,9.51570955]
[1693755633161,17.75779579,1633.5,1633.4,9.51570955]
[1693755633867,14.69645579,1633.5,1633.4,9.51570955]
[1693755634659,14.69645579,1633.5,1633.4,6.45418955]
[1693755635668,14.69645579,1633.5,1633.4,8.86049559]
[1693755636071,17.75779579,1633.5,1633.4,5.79897559]
[1693755636368,17.75779579,1633.5,1633.4,4.66166089]
[1693755636571,17.75779579,1633.5,1633.4,7.72318089]
[1693755636961,17.75779579,1633.5,1633.4,3.06152]
[1693755637165,17.75779579,1633.5,1633.4,4.66511959]
[1693755637672,17.75779579,1633.5,1633.4,6.45875993]
[1693755637870,14.69645579,1633.5,1633.4,9.52027993]
[1693755638170,14.69645579,1633.5,1633.4,7.72663959]
[1693755638669,14.69645579,1633.5,1633.4,9.52034997]
[1693755640371,17.75779579,1633.5,1633.4,9.52034997]
[1693755640573,17.75779579,1633.5,1633.4,3.39730997]
[1693755640875,17.75779579,1633.5,1633.4,1.60359959]
[1693755641172,17.75779579,1633.5,1633.4,3.39778517]
[1693755643067,20.26389579,1633.5,1633.4,3.39778517]
[1693755643268,20.26389579,1633.5,1633.4,5.80318455]
[1693755646173,20.749769,1633.5,1633.4,5.80318455]
[1693755646371,20.749769,1633.5,1633.4,8.67034807]
[1693755646776,20.749769,1633.5,1633.4,7.26110496]
[1693755647174,20.749769,1633.5,1633.4,4.19958496]
[1693755648075,20.749769,1633.5,1633.4,5.80439656]
[1693755648676,20.749769,1633.5,1633.4,8.86591656]
[1693755649071,17.688429,1633.5,1633.4,14.79460008]
[1693755649376,6.12611579,1633.5,1633.4,19.37402848]
[1693755649677,6.12611579,1633.5,1633.4,21.83902848]
[1693755649873,6.12611579,1633.5,1633.4,22.64082828]
[1693755651278,9.18745579,1633.5,1633.4,22.64082828]
[1693755651968,6.12611579,1633.5,1633.4,22.64082828]
[1693755652572,9.18747579,1633.5,1633.4,22.64082828]
[1693755654578,0.00343579,1633.5,1633.4,28.14982828]
[1693755654779,0.00343579,1633.5,1633.4,28.95162808]
[1693755660782,0.00343579,1633.5,1633.4,27.1574425]
[1693755660985,0.00343579,1633.5,1633.4,28.9557802]
[1693755663271,0.00343579,1633.5,1633.4,23.4467802]
[1693755663482,0.00343579,1633.5,1633.4,28.9557802]
[1693755663674,12.05461931,1633.5,1633.4,25.8942602]
[1693755663881,12.05461931,1633.5,1633.4,25.0922256]
[1693755664079,12.05461931,1633.5,1633.4,22.22506208]
[1693755665181,8.99327931,1633.5,1633.4,25.0922256]
[1693755665883,14.50227931,1633.5,1633.4,19.71638208]
[1693755666881,14.50227931,1633.5,1633.4,22.5835456]
[1693755667083,8.37959931,1633.5,1633.4,22.5835456]
[1693755668586,8.37959931,1633.5,1633.4,19.71638208]
[1693755670090,5.51243579,1633.5,1633.4,22.5835456]
[1693755670282,8.37959931,1633.5,1633.4,22.5835456]
[1693755672187,5.51243579,1633.5,1633.4,22.5835456]
[1693755673988,0.00343579,1633.5,1633.4,22.5835456]
[1693755674396,0.00343579,1633.5,1633.4,19.37331519]
[1693755675594,0.00343579,1633.5,1633.4,23.3855802]
[1693755694302,17.56361931,1633.5,1633.4,14.39537668]
[1693755694508,19.16304447,1633.5,1633.4,11.13149811]
[1693755695311,21.56194576,1633.5,1633.4,14.19302811]
[1693755696210,21.56194576,1633.5,1633.4,11.13149811]
[1693755697708,19.16304447,1633.5,1633.4,11.13149811]
[1693755700012,23.0238606,1633.5,1633.4,7.26642797]
[1693755701507,23.0238606,1633.5,1633.4,10.32795797]
[1693755701710,24.62337386,1633.5,1633.4,10.32795797]
[1693755702007,23.0238606,1633.5,1633.4,10.32795797]
[1693755702707,24.6233213,1633.5,1633.4,10.32795797]
[1693755704809,23.0238606,1633.5,1633.4,10.32795797]
[1693755710514,23.0238606,1633.5,1633.4,16.25666149]
[1693755710714,23.0238606,1633.5,1633.4,13.19512149]
[1693755711016,24.62348859,1633.5,1633.4,13.19512149]
[1693755711218,23.0238606,1633.5,1633.4,10.32795797]
[1693755711618,19.9625206,1633.5,1633.4,13.38949797]
[1693755712822,19.9625206,1633.5,1633.4,13.18008888]
[1693755712823,19.96310041,1633.5,1633.4,13.18008888]
[1693755713212,20.45732328,1633.5,1633.4,13.18008888]
[1693755713717,20.45732328,1633.5,1633.4,16.0472524]
[1693755714317,20.45732328,1633.5,1633.4,13.18008888]
[1693755714616,22.05689574,1633.5,1633.4,13.18008888]
[1693755716320,22.05689574,1633.5,1633.4,16.0472524]
[1693755716620,13.72891112,1633.5,1633.4,16.85025009]
[1693755716821,10.66757112,1633.5,1633.4,22.37169009]
[1693755717223,13.72892112,1633.5,1633.4,19.31015009]
[1693755717917,13.72892112,1633.5,1633.4,19.37135009]
[1693755718726,16.79027112,1633.5,1633.4,19.37135009]
[1693755719128,7.11200825,1633.5,1633.4,22.43289009]
[1693755719322,3.06478579,1633.5,1633.4,19.37135009]
[1693755719518,6.12613579,1633.5,1633.4,19.37135009]
[1693755719925,10.78705825,1633.5,1633.4,19.37135009]
[1693755720126,7.72570825,1633.5,1633.4,19.37135009]
[1693755720326,10.59287177,1633.5,1633.4,19.37135009]
[1693755720528,13.65422177,1633.5,1633.4,19.37135009]
[1693755720830,19.16322177,1633.5,1633.4,13.38144657]
[1693755721325,19.16322177,1633.5,1633.4,10.31991657]
[1693755721521,19.16322177,1633.5,1633.4,3.99530071]
[1693755721522,25.50428041,1633.5,1633.4,3.99530071]
[1693755723523,22.44293041,1633.5,1633.4,10.11838071]
[1693755724531,24.04233749,1633.5,1633.4,10.11838071]
[1693755724921,21.17517397,1633.5,1633.4,12.98554423]
[1693755725331,24.04233749,1633.5,1633.4,12.98554423]
[1693755725731,24.04233749,1633.5,1633.4,16.04713423]
[1693755726429,24.04233749,1633.5,1633.4,18.67623423]
[1693755726628,22.44293041,1633.5,1633.4,18.67623423]
[1693755727837,22.44293041,1633.5,1633.4,15.80907071]
[1693755728235,22.44293041,1633.5,1633.4,12.74748071]
[1693755729132,22.44293041,1633.5,1633.4,15.80909071]
[1693755729734,19.57576689,1633.5,1633.4,18.67625423]
[1693755729934,22.44293041,1633.5,1633.4,18.67625423]
[1693755730131,22.44293041,1633.5,1633.4,15.80909071]
[1693755730537,25.50430041,1633.5,1633.4,9.68594071]
[1693755730934,25.50430041,1633.5,1633.4,10.11840071]
[1693755731934,25.50430041,1633.5,1633.4,3.99530071]
[1693755732130,25.50430041,1633.5,1633.4,10.11844071]
[1693755732632,27.05192733,1633.5,1633.4,3.99530071]
[1693755732832,28.15804934,1633.5,1633.4,3.19276442]
[1693755733437,24.95874121,1633.5,1633.3,4.14666859]
[1693755733632,8.21425556,1633.4,1633.3,1.60626859]
[1693755733938,2.86716352,1633.3,1633.0,3.0623]
[1693755734133,2.86716352,1633.3,1633.0,3.06229]
[1693755734134,7.90764587,1633.1,1633.0,3.06229]
[1693755734338,19.96116939,1633.1,1633.0,4.64920765]
[1693755734638,22.22287304,1633.1,1633.0,4.64920765]
[1693755734932,24.62151891,1633.1,1633.0,4.64920765]
[1693755735127,24.62151891,1633.1,1633.0,1.58691765]
[1693755735331,23.02328939,1633.1,1633.0,1.58691765]
[1693755735532,22.22228244,1633.1,1632.9,6.18596]
[1693755735732,5.509,1633.0,1632.9,3.12357]
[1693755735936,20.33604,1633.0,1632.9,4.4790671]
[1693755736135,20.33604,1633.0,1632.9,7.5415671]
[1693755736841,20.33604,1633.0,1632.9,7.4803671]
[1693755737939,20.33604,1633.0,1632.9,1.3554971]
[1693755738141,20.33604,1633.0,1632.9,4.4179771]
[1693755738142,20.33948272,1633.0,1632.9,4.4179771]
[1693755738445,20.33948272,1633.0,1632.9,4.4179971]
[1693755738637,20.33948272,1633.0,1632.9,3.0625]
[1693755739343,20.33948272,1633.0,1632.8,9.18773]
[1693755739642,8.37616352,1632.9,1632.8,9.18773]
[1693755739837,17.56363352,1632.9,1632.8,10.54201292]
[1693755741140,17.56363352,1632.9,1632.8,9.18773]
[1693755745745,14.50114352,1632.9,1632.8,9.18773]
[1693755746348,14.50114352,1632.9,1632.8,12.05489352]
[1693755746644,5.509,1632.9,1632.8,15.17879352]
[1693755746949,5.51244272,1633.0,1632.9,0.0612]
[1693755747149,11.63712272,1633.0,1632.9,12.31124]
[1693755747344,14.50428624,1633.0,1632.9,14.58117648]
[1693755747945,14.69946272,1633.0,1632.9,14.58117648]
[1693755748848,14.69946272,1633.0,1632.9,11.51866648]
[1693755750451,17.56662624,1633.0,1632.9,11.51866648]
[1693755751144,14.69946272,1633.0,1632.9,11.51866648]
[1693755753049,20.62896624,1633.0,1632.9,8.45615648]
[1693755753246,17.56662624,1633.0,1632.9,6.18622]
[1693755753651,20.18042624,1633.0,1632.9,6.18622]
[1693755754654,20.18042624,1633.0,1632.9,9.24873]
[1693755756555,17.56662624,1633.0,1632.9,9.24873]
[1693755756761,11.63712272,1633.0,1632.9,15.17840352]
[1693755756964,11.63712272,1633.0,1632.9,12.11589352]
[1693755757664,14.69944272,1633.0,1632.9,12.11589352]
[1693755758759,0.00344272,1633.0,1632.9,15.17840352]
[1693755758961,0.00344272,1633.0,1632.9,16.53081097]
[1693755763367,0.00344272,1633.0,1632.9,20.68740352]
[1693755764063,0.00344272,1633.0,1632.9,22.04036125]
[1693755764670,8.99524624,1633.0,1632.9,18.97785125]
[1693755764871,17.56656624,1633.0,1632.9,10.60168773]
[1693755765469,14.50424624,1633.0,1632.9,13.66420773]
[1693755766469,14.50424624,1633.0,1632.9,16.53137125]
[1693755767871,14.50424624,1633.0,1632.9,13.66420773]
[1693755775572,14.50424624,1633.0,1632.9,16.53137125]
[1693755775771,14.50424624,1633.0,1632.9,19.74336199]
[1693755775972,14.50424624,1633.0,1632.9,16.87619847]
[1693755776272,17.56656624,1633.0,1632.9,10.60168773]
[1693755777377,17.56656624,1633.0,1632.9,7.53917773]
[1693755778276,20.62888624,1633.0,1632.9,7.53917773]
[1693755778570,0.00344272,1633.0,1632.9,22.18984199]
[1693755779179,3.06576272,1633.0,1632.9,25.25235199]
[1693755779878,6.12808272,1633.0,1632.9,25.25235199]
[1693755781269,0.00344272,1633.0,1632.9,25.25235199]
[1693755782479,0.00344272,1633.0,1632.9,25.25245904]
[1693755782872,0.00344272,1633.0,1632.9,26.05534968]
[1693755783477,0.00344272,1633.0,1632.9,22.04036125]
[1693755784781,0.00344272,1633.0,1632.9,26.05534968]
[1693755787583,3.06576272,1633.0,1632.9,26.05534968]
[1693755787777,6.12808272,1633.0,1632.9,26.05534968]
[1693755788173,6.12808272,1633.0,1632.9,22.99283968]
[1693755789186,6.12808272,1633.0,1632.9,26.05534968]
[1693755790187,8.99524624,1633.0,1632.9,20.12567616]
[1693755790485,8.99524624,1633.0,1632.9,23.18818616]
[1693755791589,8.99524624,1633.0,1632.9,26.05534968]
[1693755792089,8.99524624,1633.0,1632.9,22.99283968]
[1693755792388,5.93292624,1633.0,1632.9,26.05534968]
[1693755792983,5.93292624,1633.0,1632.9,23.18818616]
[1693755793384,8.99524624,1633.0,1632.9,23.18818616]
[1693755794190,8.99524624,1633.0,1632.9,26.05534968]
[1693755795694,5.93292624,1633.0,1632.9,26.05534968]
[1693755795897,3.06576272,1633.0,1632.9,26.05534968]
[1693755799800,5.93292624,1633.0,1632.9,26.05534968]
[1693755800995,5.93292624,1633.0,1632.9,23.18818616]
[1693755801195,5.93292624,1633.0,1632.9,26.05534968]
[1693755802603,7.53056516,1633.0,1632.9,26.05534968]
[1693755803800,4.66340164,1633.0,1632.9,26.05534968]
[1693755804102,10.59288516,1633.0,1632.9,22.99283968]
[1693755805406,10.59288516,1633.0,1632.9,20.12567616]
[1693755805809,10.59288516,1633.0,1632.9,23.18818616]
[1693755806604,7.53056516,1633.0,1632.9,23.18818616]
[1693755807006,13.03956516,1633.0,1632.9,14.55547616]
[1693755807201,23.02753211,1633.0,1632.9,4.56826592]
[1693755807510,25.72291474,1633.0,1632.9,3.76453029]
[1693755808010,25.72291474,1633.0,1632.9,6.82704029]
[1693755808410,25.72291474,1633.0,1632.9,9.88955029]
[1693755809004,22.66059474,1633.0,1632.9,9.88955029]
[1693755809205,21.86104933,1633.0,1632.9,9.88955029]
[1693755809608,20.27159592,1633.0,1632.9,9.88955029]
[1693755810210,19.96521532,1633.0,1632.9,9.88955029]
[1693755810712,20.27160086,1633.0,1632.9,9.88955029]
[1693755810907,20.27160086,1633.0,1632.9,6.82704029]
[1693755811210,23.33392086,1633.0,1632.9,6.82704029]
[1693755811812,23.33392086,1633.0,1632.9,4.41546773]
[1693755812311,23.02753532,1633.0,1632.9,7.47797773]
[1693755812610,19.96521532,1633.0,1632.9,7.47797773]
[1693755815312,14.0357318,1633.0,1632.9,13.41097647]
[1693755815513,17.0980518,1633.0,1632.9,13.41097647]
[1693755815814,21.56333609,1633.0,1632.9,15.82254903]
[1693755816008,21.56333609,1633.0,1632.9,12.95538551]
[1693755816408,21.56333609,1633.0,1632.9,10.54381295]
[1693755816611,21.56333609,1633.0,1632.9,12.95538551]
[1693755817616,21.56333609,1633.0,1632.9,9.89287551]
[1693755818714,19.16468701,1633.0,1632.9,9.89287551]
[1693755819917,19.16468701,1633.0,1632.9,12.95538551]
[1693755820116,19.16468701,1633.0,1632.9,15.88374903]
[1693755820313,19.66011255,1633.0,1632.9,15.88374903]
[1693755820521,19.66011255,1633.0,1632.9,13.47217647]
[1693755820522,22.05876163,1633.0,1632.9,13.47217647]
[1693755821218,22.05876163,1633.0,1632.9,10.60501295]
[1693755821417,22.05876163,1633.0,1632.9,7.54250295]
[1693755821619,25.12108163,1633.0,1632.9,1.35628295]
[1693755821820,25.12108163,1633.0,1632.9,4.41879295]
[1693755822521,25.12108163,1633.0,1632.9,7.48130295]
[1693755823218,22.05876163,1633.0,1632.9,7.48130295]
[1693755824523,19.66011255,1633.0,1632.9,7.48130295]
[1693755824720,9.50921257,1633.0,1632.9,15.17840352]
[1693755824927,1.60156349,1633.0,1632.9,17.04240035]
[1693755825123,1.60156349,1633.0,1632.9,19.11692683]
[1693755826125,4.66388349,1633.0,1632.9,19.11692683]
[1693755826323,4.66388349,1633.0,1632.9,21.52849939]
[1693755827526,7.72620349,1633.0,1632.9,21.52849939]
[1693755830128,13.65568701,1633.0,1632.9,18.46598939]
[1693755831528,13.65568701,1633.0,1632.9,15.59882587]
[1693755832022,13.65568701,1633.0,1632.9,18.46598939]
[1693755832623,10.78852349,1633.0,1632.9,18.46598939]
[1693755833428,16.29752349,1633.0,1632.9,18.46598939]
[1693755833630,19.16468701,1633.0,1632.9,15.59882587]
[1693755833830,23.02753532,1633.0,1632.9,5.70631]
[1693755834034,23.02753532,1633.0,1632.9,8.76882]
[1693755834625,19.96521532,1633.0,1632.9,11.83133]
[1693755835828,19.96521532,1633.0,1632.9,9.24873]
[1693755836723,19.96521532,1633.0,1632.9,10.60487559]
[1693755838523,19.96521532,1633.0,1632.9,9.24873]
[1693755841230,19.96521532,1633.0,1632.9,10.60509415]
[1693755842929,19.96406442,1633.0,1632.9,10.60514779]
[1693755843327,17.0969009,1633.0,1632.9,15.88153458]
[1693755843637,19.96406442,1633.0,1632.9,15.88153458]
[1693755844433,19.96406442,1633.0,1632.9,12.95317106]
[1693755846537,17.0969009,1633.0,1632.9,15.82033458]
[1693755847131,19.96406442,1633.0,1632.9,15.82033458]
[1693755848440,17.0969009,1633.0,1632.9,15.82033458]
[1693755848734,19.96406442,1633.0,1632.9,15.82033458]
[1693755849538,21.56829306,1633.0,1632.9,15.82033458]
[1693755850132,7.9099409,1633.0,1632.9,18.94404458]
[1693755850333,8.5255809,1633.0,1632.9,18.94404458]
[1693755850932,11.5879009,1633.0,1632.9,18.94404458]
[1693755851233,13.1926325,1633.0,1632.9,18.94404458]
[1693755852134,13.49900904,1633.0,1632.9,19.74711901]
[1693755852841,13.49900904,1633.0,1632.9,16.68460901]
[1693755854137,19.42849256,1633.0,1632.9,7.69242549]
[1693755854344,19.42849256,1633.0,1632.9,10.75493549]
[1693755855132,19.42849256,1633.0,1632.9,13.01698324]
[1693755855133,20.22765862,1633.0,1632.9,13.01698324]
[1693755855336,20.22765862,1633.0,1632.9,9.95447324]
[1693755856341,17.16533862,1633.0,1632.9,9.95447324]
[1693755856738,17.16533862,1633.0,1632.9,9.89327324]
[1693755857040,25.73665862,1633.0,1632.9,9.89327324]
[1693755860543,22.67433862,1633.0,1632.9,9.89327324]
[1693755861448,22.67433862,1633.0,1632.9,11.50129451]
[1693755865344,22.67433862,1633.0,1632.9,8.43878451]
[1693755865545,22.67433862,1633.0,1632.9,11.50129451]
[1693755866151,22.67433862,1633.0,1632.9,14.56380451]
[1693755866348,22.67433862,1633.0,1632.9,15.82294676]
[1693755866554,22.67433862,1633.0,1632.9,12.95578324]
[1693755868155,22.67433862,1633.0,1632.9,11.50097296]
[1693755868850,25.73666862,1633.0,1632.9,11.50097296]
[1693755870061,25.73666862,1633.0,1632.9,14.56348296]
[1693755875065,22.67433862,1633.0,1632.9,14.56348296]
[1693755875661,16.7448551,1633.0,1632.9,20.55435648]
[1693755875864,16.7448551,1633.0,1632.9,15.88414676]
[1693755876058,19.8071851,1633.0,1632.9,15.88414676]
[1693755876254,22.67434862,1633.0,1632.9,15.88414676]
[1693755877466,19.8071851,1633.0,1632.9,15.88414676]
[1693755877667,22.67434862,1633.0,1632.9,15.88414676]
[1693755878562,25.73667862,1633.0,1632.9,5.43711304]
[1693755878764,26.53584469,1633.0,1632.9,1.6076598]
[1693755880964,26.53584469,1633.0,1632.9,4.6701698]
[1693755881869,24.93111309,1633.0,1632.9,4.6701698]
[1693755882171,26.53806893,1633.0,1632.9,4.6701698]
[1693755883171,26.53806893,1633.0,1632.9,1.6076598]
[1693755883480,22.54223862,1633.0,1632.9,1.6076598]
[1693755884872,22.54226509,1633.0,1632.8,8.66379]
[1693755885075,16.72686208,1633.0,1632.9,1.60733675]
[1693755885370,25.74072603,1633.0,1632.9,1.60733675]
[1693755889073,25.74072603,1633.0,1632.9,4.66985675]
[1693755889276,19.81123251,1633.0,1632.9,13.72326027]
[1693755889466,19.81123251,1633.0,1632.9,10.66074027]
[1693755890068,22.87356251,1633.0,1632.9,10.66074027]
[1693755890263,25.74072603,1633.0,1632.9,10.66074027]
[1693755890477,25.74072603,1633.0,1632.9,7.79357675]
[1693755891478,25.74072603,1633.0,1632.9,4.73105675]
[1693755891675,25.74072603,1633.0,1632.9,1.66853675]
[1693755894072,25.74072603,1633.0,1632.9,1.60733675]
[1693755894476,26.54036866,1633.0,1632.8,6.55684188]
[1693755894677,9.0138314,1632.9,1632.8,9.61954188]
[1693755894981,22.87086724,1632.9,1632.8,10.69636272]
[1693755895182,25.34121204,1632.9,1632.8,10.69636272]
[1693755896488,25.34121204,1632.9,1632.8,13.75906272]
[1693755896782,25.34121204,1632.9,1632.8,16.62622624]